lending/lending_fUSD_20240112
["ID","MTS","AMOUNT","RATE_DAILY","PERIOD"]
[311363261,1705067548298,-900.49,0.0002697,2]
[311363262,1705067548307,-500.0,0.0002697,2]
[311363263,1705067548317,-580.22,0.0002697,2]
[311363264,1705067548326,-531.06,0.0002697,2]
[311363265,1705067548337,-500.0,0.0002697,2]
[311363266,1705067548346,-500.0,0.0002697,2]
[311363267,1705067548356,-272.35,0.0002697,2]
[311363268,1705067548366,-500.0,0.0002697,2]
[311363269,1705067548375,-500.0,0.0002697,2]
[311363270,1705067548385,-500.0,0.0002697,2]
[311363271,1705067548394,-641.94568332,0.0002697,2]
[311363272,1705067548403,-988.76,0.0002697,2]
[311363273,1705067548413,-500.0,0.0002697,2]
[311363274,1705067548423,-325.14701472,0.0002697,2]
[311363275,1705067548437,-211.65298528,0.0002697,2]
[311363276,1705067548446,-500.0,0.0002697,2]
[311363277,1705067548455,-112.64130554,0.0002697,2]
[311363278,1705067548507,616.97420109,0.000201,2]
[311363279,1705067548898,-671.55000001,0.00022584,2]
[311363280,1705067548911,-280.77557113,0.00022584,2]
[311363281,1705067548938,-47.67442886,0.00022584,2]
[311363282,1705067548947,-411.52576143,0.00022585,2]
[311363283,1705067548959,-88.47423857,0.00022585,2]
[311363284,1705067548969,-218.74836718,0.00022585,2]
[311363285,1705067548980,-281.25163282,0.00022585,2]
[311363286,1705067548990,-500.0,0.00022585,2]
[311363287,1705067548999,-500.0,0.00022585,2]
[311363288,1705067549008,-500.0,0.00022585,2]
[311363289,1705067549017,-500.0,0.00022586,2]
[311363290,1705067549027,-500.0,0.00022586,2]
[311363291,1705067549036,-500.0,0.00022859,2]
[311363292,1705067549046,-500.0,0.00022859,2]
[311363293,1705067549055,-500.0,0.00022859,2]
[311363294,1705067549064,-500.0,0.0002286,2]
[311363295,1705067549074,-500.0,0.0002286,2]
[311363296,1705067549084,-500.0,0.0002286,2]
[311363297,1705067549093,-500.0,0.00023133,2]
[311363298,1705067549103,-500.0,0.00023133,2]
[311363299,1705067549111,-500.0,0.00023133,2]
[311363300,1705067549121,-550.56957763,0.00023134,2]
[311363301,1705067549130,-500.0,0.00023134,2]
[311363302,1705067549140,-500.0,0.00023407,2]
[311363303,1705067549149,-500.0,0.00023407,2]
[311363304,1705067549158,-500.0,0.00023681,2]
[311363305,1705067549167,-500.0,0.00023681,2]
[311363306,1705067549176,-500.0,0.00023955,2]
[311363307,1705067549190,-289.85328304,0.00023955,2]
[311363308,1705067549202,-210.14671696,0.00023955,2]
[311363309,1705067549211,-500.0,0.00024229,2]
[311363310,1705067549220,-500.0,0.00024229,2]
[311363311,1705067549233,-416.85,0.00024503,2]
[311363312,1705067549243,-500.0,0.00024503,2]
[311363313,1705067549252,-500.0,0.00024503,2]
[311363314,1705067549262,-500.0,0.00024777,2]
[311363315,1705067549271,-500.0,0.00024777,2]
[311363316,1705067549281,-338.66236407,0.00025051,2]
[311363317,1705067549359,-500.0,0.00022586,2]
[311363318,1705067549369,-500.0,0.00022859,2]
[311363319,1705067549379,-161.33763593,0.00025051,2]
[311363320,1705067549388,-500.0,0.00025325,2]
[311363321,1705067549398,-760.1,0.00026422,2]
[311363322,1705067549407,-760.1,0.00026696,2]
[311363323,1705067549417,-564.09869446,0.0002697,2]
[311363324,1705067549427,-594.36,0.0002697,2]
[311363325,1705067549437,-500.0,0.0002697,2]
[311363326,1705067549448,-189.9,0.0002697,2]
[311363327,1705067549457,-500.0,0.0002697,2]
[311363328,1705067549467,-572.67,0.0002697,2]
[311363329,1705067549477,-189.24583368,0.0002697,2]
[311363330,1705067549486,-543.4,0.0002697,2]
[311363331,1705067549496,-500.0,0.0002697,2]
[311363332,1705067549506,-500.0,0.0002697,2]
[311363333,1705067549519,-686.86,0.0002697,2]
[311363334,1705067549529,-500.0,0.0002697,2]
[311363335,1705067549539,-513.03,0.0002697,2]
[311363336,1705067549549,-500.0,0.0002697,2]
[311363337,1705067549559,-717.1,0.0002697,2]
[311363338,1705067549569,-915.79,0.0002697,2]
[311363339,1705067549578,-628.12,0.0002697,2]
[311363340,1705067549589,-578.39,0.0002697,2]
[311363341,1705067549598,-865.61,0.0002697,2]
[311363342,1705067549608,-500.0,0.0002697,2]
[311363343,1705067549618,-504.98,0.0002697,2]
[311363344,1705067549629,-785.43,0.0002697,2]
[311363345,1705067549639,-500.0,0.0002697,2]
[311363346,1705067549648,-500.0,0.0002697,2]
[311363347,1705067549658,-500.0,0.0002697,2]
[311363348,1705067549667,-500.0,0.0002697,2]
[311363349,1705067549676,-802.88,0.0002697,2]
[311363350,1705067549686,-592.6,0.0002697,2]
[311363351,1705067549696,-1046.21,0.0002697,2]
[311363352,1705067549706,-1019.63,0.0002697,2]
[311363353,1705067549715,-501.58,0.0002697,2]
[311363354,1705067549724,-1762.58,0.0002697,2]
[311363355,1705067549733,-500.0,0.0002697,2]
[311363356,1705067549743,-742.28,0.0002697,2]
[311363357,1705067549752,-500.0,0.0002697,2]
[311363358,1705067549762,-544.63,0.0002697,2]
[311363359,1705067549772,-551.57,0.0002697,2]
[311363360,1705067549781,-500.0,0.0002697,2]
[311363361,1705067549790,-500.0,0.0002697,2]
[311363362,1705067549800,-511.99,0.0002697,2]
[311363363,1705067549811,-500.0,0.0002697,2]
[311363364,1705067549822,-500.0,0.0002697,2]
[311363365,1705067549832,-513.65,0.0002697,2]
[311363366,1705067549842,-300.87783393,0.0002697,2]
[311363367,1705067549928,2850.60545596,0.00021681,2]
[311363368,1705067549952,334.60918139,0.00021681,2]
[311363369,1705067550286,419.33476208,0.00021681,2]
[311363370,1705067550322,250.0,0.00022486,2]
[311363371,1705067550886,375.1,0.00022196,2]
[311363372,1705067553994,296.0,0.00020396,2]
[311363373,1705067557478,150.62461309,0.00021,2]
[311363374,1705067557859,1802.13110049,0.00022218,2]
[311363375,1705067557883,197.86889951,0.00022218,2]
[311363376,1705067557916,500.0,0.00022218,2]
[311363377,1705067559620,535.46710297,0.0001,2]
[311363378,1705067560059,2394.46365457,0.00011,2]
[311363379,1705067560080,3627.79965705,0.00011,2]
[311363380,1705067560102,1977.73668838,0.00011,2]
[311363381,1705067560621,1000.0,9.999e-05,2]
[311363382,1705067561844,500.0,0.00021918,2]
[311363383,1705067562943,150.06296867,9.998e-05,2]
[311363384,1705067562967,48.90754169,9.998e-05,2]
[311363385,1705067563146,1040.55036639,0.00022,2]
[311363386,1705067563321,2538.34174897,6.94e-05,2]
[311363387,1705067563345,3627.79965705,6.94e-05,2]
[311363388,1705067563369,3627.79965705,6.94e-05,2]
[311363389,1705067563391,6290.0208977,6.94e-05,2]
[311363390,1705067564076,5607.87225538,0.000155,2]
[311363391,1705067564232,1000.0,9.997e-05,2]
[311363392,1705067565847,2869.8311,0.00022485,2]
[311363393,1705067566099,11494.86797602,0.00010999,2]
[311363394,1705067566282,156.11353948,6.939e-05,2]
[311363395,1705067566473,1040.55036639,0.00022,2]
[311363396,1705067566687,327.86909136,9.996e-05,2]
[311363397,1705067567469,1000.0,9.996e-05,2]
[311363398,1705067568337,168.57,0.00016981,2]
[311363399,1705067569371,1042.15048656,6.939e-05,2]
[311363400,1705067569406,1879.09164713,0.00015,2]
[311363401,1705067569690,1165.51150563,0.00019,2]
[311363402,1705067569783,880.0,0.00020625,2]
[311363403,1705067571417,1040.55036639,0.00022,2]
[311363404,1705067582166,165.75641327,0.00022484,2]
[311363405,1705067582784,1000.0,0.00021906,2]
[311363406,1705067593219,629.73449986,0.00022486,2]
[311363407,1705067595158,18371.3497,0.00022485,2]
[311363408,1705067595604,25186.20935984,0.00022357,2]
[311363409,1705067600778,1000.0,0.00021906,2]
[311363410,1705067611351,609.2614061,0.00021906,2]
[311363411,1705067617172,543.69034289,0.00021906,2]
[311363412,1705067619185,500.0,0.00021906,2]
[311363413,1705067620783,1000.0,0.00021906,2]
[311363414,1705067621230,7417.37716852,0.00021906,2]
[311363415,1705067629350,542.24957499,0.00021906,2]
[311363416,1705067631146,544.52543998,0.00021906,2]
[311363417,1705067633189,500.0,0.00021906,2]
[311363418,1705067635739,2182.01021188,0.00021906,2]
[311363419,1705067636785,1000.0,0.00021906,2]
[311363420,1705067646386,1032.3793498,0.00021906,2]
[311363421,1705067648466,2215.64015997,0.0002,2]
[311363422,1705067650893,1032.3793498,0.00021906,2]
[311363423,1705067654789,1000.0,0.00021906,2]
[311363424,1705067664673,3979.62888155,0.00022,2]
[311363425,1705067674785,1000.0,0.00021906,2]
[311363426,1705067684905,1034.25946278,0.00021906,2]
[311363427,1705067690788,1000.0,0.00021906,2]
[311363428,1705067706786,1000.0,0.00021906,2]
[311363429,1705067709392,419.82299992,0.00022485,2]
[311363430,1705067719765,520.01572247,0.00021906,5]
[311363431,1705067721358,750.93,0.00021922,2]
[311363432,1705067728791,951.2905001,0.00021906,2]
[311363433,1705067732864,222.75436481,0.00022357,4]
[311363434,1705067748840,166.42408635,0.00022357,4]
[311363435,1705067779324,245.55,0.00021909,2]
[311363436,1705067785837,3207.3814279,0.00022357,2]
[311363437,1705067792250,163.99,0.00022131,2]
[311363438,1705067803868,3207.3814279,0.00022357,2]
[311363439,1705067821705,163.98985264,0.00022357,2]
[311363440,1705067827358,279.88199994,0.00022485,2]
[311363442,1705067907579,271.09,0.00020015,2]
[311363443,1705067908380,271.09,0.00022279,2]
[311363444,1705067935164,377.7646178,0.00022486,2]
[311363445,1705067947483,186.58799996,0.00022485,2]
[311363448,1705067979406,296.0,0.00021927,2]
[311363449,1705068004196,500.0,0.0002195,2]
[311363450,1705068043438,163.87551942,0.00022483,2]
[311363451,1705068055729,377.76461778,0.00022486,2]
[311363452,1705068092110,156.07,0.00022075,2]
[311363453,1705068133580,349.45870508,0.00022485,2]
[311363454,1705068155133,375.46,0.00021843,2]
[311363455,1705068165774,377.76461778,0.00022485,2]
[311363456,1705068215851,1276.22018111,0.00022485,5]
[311363457,1705068233810,1270.53155107,0.00022485,5]
[311363458,1705068234427,272.38,0.00021858,2]
[311363459,1705068237151,373.1759999,0.00022485,2]
[311363460,1705068241050,500.0,0.00022585,30]
[311363461,1705068241354,500.0,0.00022859,30]
[311363462,1705068241609,500.0,0.00023133,30]
[311363463,1705068241885,500.0,0.00023407,30]
[311363464,1705068266064,392.30250116,0.00022475,2]
[311363465,1705068267541,9342.8088018,0.00022475,2]
[311363466,1705068274971,2114.627127,0.00022445,2]
[311363467,1705068283683,1009.22848101,0.00022346,2]
[311363468,1705068347591,282.43,0.00019726,2]
[311363469,1705068347663,13914.242,0.00022483,2]
[311363470,1705068347930,282.43,0.0002199,2]
[311363471,1705068348111,1250.0,0.00022,3]
[311363473,1705068369702,192.22393981,0.00022485,2]
[311363474,1705068386801,392.30250116,0.00022484,2]
[311363475,1705068404910,150.0,0.00022484,2]
[311363476,1705068404934,421.97763005,0.00022484,2]
[311363477,1705068407941,150.0,0.00020098,2]
[311363478,1705068407963,150.0,0.00020098,2]
[311363479,1705068407983,150.0,0.00020098,2]
[311363480,1705068408003,109.19420109,0.00020098,2]
[311363481,1705068416863,40.80579891,0.00021905,2]
[311363482,1705068416885,150.0,0.00021905,2]
[311363483,1705068416907,150.0,0.00021905,2]
[311363484,1705068416929,150.0,0.00021905,2]
[311363485,1705068416951,173.73555236,0.00021905,2]
[311363486,1705068431446,150.0,0.00021999,2]
[311363487,1705068437615,287.26990936,0.00021889,2]
[311363488,1705068445086,-305.44201168,0.00022514,2]
[311363489,1705068471986,5764.0,0.00031,120]
[311363490,1705068473561,155.53567904,0.00022414,2]
[311363491,1705068478538,155.53567901,0.00022443,2]
[311363492,1705068479746,2506.68034155,0.00021453,2]
[311363493,1705068480901,763.2,0.00021599,2]
[311363494,1705068481805,173.14,0.00021599,2]
[311363495,1705068482818,500.0,0.00021918,2]
[311363496,1705068483550,155.53567901,0.00022472,2]
[311363497,1705068490226,-155.53567901,0.000225,2]
[311363498,1705068497065,392.30250116,0.00022484,2]
[311363499,1705068502394,31582.0,0.00022358,2]
[311363505,1705068559523,-244.46432099,0.00022501,2]
[311363506,1705068560158,-246.14543065,0.00022501,2]
[311363507,1705068560628,-150.0,0.00022501,2]
[311363508,1705068561226,-150.0,0.00022501,2]
[311363509,1705068561795,-150.0,0.00022501,2]
[311363510,1705068562651,-102.19832232,0.00022501,2]
[311363511,1705068562672,-47.80167768,0.00022501,2]
[311363512,1705068573643,2069.45,0.000225,2]
[311363513,1705068577078,354.12902011,0.000225,2]
[311363516,1705068583576,155.0,0.000225,2]
[311363517,1705068583608,-107.19832232,0.00022501,2]
[311363518,1705068583631,-42.80167768,0.00022501,2]
[311363519,1705068584127,-150.0,0.00022501,2]
[311363520,1705068584906,-150.0,0.00022501,2]
[311363521,1705068588131,-150.0,0.00022501,2]
[311363522,1705068588834,-150.0,0.00022501,2]
[311363523,1705068589336,-150.0,0.00022501,2]
[311363524,1705068590135,-150.0,0.00022501,2]
[311363525,1705068591239,176.2402856,0.00022483,2]
[311363526,1705068591484,4630.74851402,0.000225,2]
[311363527,1705068593591,174.62818766,0.00022483,2]
[311363528,1705068594382,494.02868803,0.000225,2]
[311363530,1705068603869,250.0,0.00022388,2]
[311363532,1705068605152,915.41469946,0.000225,2]
[311363533,1705068607538,259.87169978,0.000225,2]
[311363534,1705068608398,493.03212967,0.00022354,2]
[311363535,1705068609668,4621.13534741,0.000225,2]
[311363536,1705068609792,156.2,0.00021755,2]
[311363537,1705068610076,156.2,0.00021896,2]
[311363538,1705068610328,156.2,0.00022038,2]
[311363539,1705068610539,156.2,0.0002218,2]
[311363540,1705068610763,156.2,0.00022321,2]
[311363541,1705068611021,156.2,0.00022463,2]
[311363542,1705068611906,25526.7278144,0.000225,2]
[311363543,1705068614186,376.78302695,0.000225,2]
[311363544,1705068617613,472.70124021,0.000225,2]
[311363545,1705068618069,2317.09975572,0.000225,2]
[311363546,1705068619761,1478.665014,0.000225,2]
[311363547,1705068620860,1050.0,0.0002159,2]
[311363548,1705068621085,8723.28260162,0.000225,2]
[311363549,1705068623830,3929.69462296,0.000225,2]
[311363550,1705068625978,309.79583088,0.000225,2]
[311363551,1705068629186,155.0,0.000225,2]
[311363552,1705068629221,572.14,0.00021763,2]
[311363569,1705068632090,-150.0,0.00022501,2]
[311363570,1705068632100,-97.74868871,0.00022501,2]
[311363571,1705068632109,-1124.79531129,0.00022501,2]
[311363572,1705068632120,-2805.78287957,0.00022501,2]
[311363573,1705068632131,-311.44051922,0.00022501,2]
[311363574,1705068632143,-358.1422689,0.00022501,2]
[311363575,1705068632154,-672.2806474,0.00022501,2]
[311363576,1705068632163,-42953.03742992,0.00022501,2]
[311363577,1705068632173,-4232.34007223,0.00022501,2]
[311363578,1705068632182,-150.0,0.00022503,2]
[311363579,1705068632192,-8668.71,0.00022507,2]
[311363580,1705068632201,-172.31,0.00022507,2]
[311363581,1705068632210,-2803.67,0.00022507,2]
[311363582,1705068632220,-369.12322363,0.00022524,2]
[311363583,1705068632229,-9342.80880172,0.00022526,2]
[311363584,1705068632241,-761.99,0.00022526,2]
[311363585,1705068632251,-155.53567901,0.00022529,2]
[311363586,1705068632262,-155.53567901,0.00022558,2]
[311363587,1705068632271,-29111.62083643,0.00022558,2]
[311363588,1705068632280,-215.11753073,0.0002256,2]
[311363589,1705068632289,-3854.1171014,0.00022572,2]
[311363590,1705068632298,-155.42094327,0.00022572,2]
[311363591,1705068632307,-314.8680558,0.00022572,2]
[311363592,1705068632317,-3497.26452154,0.00022573,2]
[311363593,1705068632327,-5601.02364978,0.00022574,2]
[311363594,1705068632337,-9342.80880172,0.00022576,2]
[311363595,1705068632348,-155.70237896,0.00022578,2]
[311363596,1705068632358,-736.93908575,0.0002258,2]
[311363597,1705068632368,-269.28426094,0.0002258,2]
[311363598,1705068632378,-403.8131731,0.0002258,2]
[311363599,1705068632387,-296.5660249,0.0002258,2]
[311363600,1705068632396,-155.0,0.0002258,2]
[311363601,1705068632406,-303.12522875,0.0002258,2]
[311363602,1705068632415,-2302.61351158,0.0002258,2]
[311363603,1705068632425,-939.01597948,0.0002258,2]
[311363604,1705068632435,-745.04348799,0.0002258,2]
[311363605,1705068632445,-267.03183216,0.0002258,2]
[311363606,1705068632454,-833.58781263,0.0002258,2]
[311363607,1705068632463,-357.81346532,0.0002258,2]
[311363608,1705068632473,-377.70218682,0.0002258,2]
[311363609,1705068632482,-2299.06127476,0.0002258,2]
[311363610,1705068632493,-334.18124431,0.0002258,2]
[311363611,1705068632503,-196.16185617,0.0002258,2]
[311363612,1705068632512,-161.58862516,0.0002258,2]
[311363613,1705068632521,-156.40921071,0.0002258,2]
[311363614,1705068632534,-165.86911865,0.0002258,2]
[311363615,1705068632543,-156.05286893,0.0002258,2]
[311363616,1705068632552,-158.21861741,0.0002258,2]
[311363617,1705068632561,-285.53311155,0.0002258,2]
[311363618,1705068632570,-155.0,0.0002258,2]
[311363620,1705068632580,-155.38053658,0.0002258,2]
[311363622,1705068632589,-381.20683443,0.0002258,2]
[311363624,1705068632598,-287.15000293,0.0002258,2]
[311363626,1705068632607,-155.49937003,0.0002258,2]
[311363628,1705068632616,-720.89351567,0.0002258,2]
[311363630,1705068632626,-914.08601068,0.0002258,2]
[311363632,1705068632635,-155.89714604,0.0002258,2]
[311363634,1705068632645,-156.45682699,0.0002258,2]
[311363636,1705068632654,-156.08368868,0.0002258,2]
[311363639,1705068632664,-184.42070114,0.0002258,2]
[311363641,1705068632673,-1431.24682515,0.0002258,2]
[311363643,1705068632683,-180.75274427,0.0002258,2]
[311363644,1705068632692,-252.27971447,0.0002258,2]
[311363646,1705068632701,-209.98174162,0.0002258,2]
[311363648,1705068632711,-383.14879003,0.0002258,2]
[311363650,1705068632720,-260.10952496,0.0002258,2]
[311363651,1705068632730,-2615.10869603,0.0002258,2]
[311363652,1705068632741,-695.52274718,0.0002258,2]
[311363653,1705068632750,-2307.87256356,0.0002258,2]
[311363654,1705068632760,-376.78302695,0.0002258,2]
[311363655,1705068632769,-3617.84690064,0.0002258,2]
[311363656,1705068632778,-1887.26460822,0.00022581,2]
[311363657,1705068632788,-284.2618957,0.00022582,2]
[311363658,1705068632797,-193.2860682,0.00022582,2]
[311363659,1705068632806,-2998.91895164,0.00022582,2]
[311363660,1705068632815,-301.20793522,0.00022582,2]
[311363662,1705068632824,-277381.65777158,0.00022582,2]
[311363706,1705068633245,-38805.275347,0.00022582,2]
[311363708,1705068633256,-973.32883742,0.00022582,2]
[311363710,1705068633267,-146525.15510573,0.00022582,2]
[311363713,1705068633279,-278.60878409,0.00022582,2]
[311363715,1705068633291,-328.78748034,0.00022582,2]
[311363717,1705068633303,-11180.38085196,0.00022582,2]
[311363719,1705068633314,-30391.35086517,0.00022582,2]
[311363722,1705068633327,-3698.8629852,0.00022582,2]
[311363724,1705068633340,-10775.61039245,0.00022582,2]
[311363727,1705068633361,-818.99,0.00022582,2]
[311363730,1705068633372,-1863.58088951,0.00022582,2]
[311363732,1705068633383,-100103.44786432,0.00022582,2]
[311363734,1705068633395,-1050.64516846,0.00022582,2]
[311363736,1705068633406,-2261.64621993,0.00022582,2]
[311363738,1705068633418,-429344.72888194,0.00022582,2]
[311363740,1705068633427,-201.04685233,0.00022583,2]
[311363742,1705068633436,-514.98040546,0.00022583,2]
[311363744,1705068633445,-17221.03973833,0.00022583,2]
[311363747,1705068633461,-590.0394705,0.00022583,2]
[311363749,1705068633472,-1181.53125704,0.00022583,2]
[311363751,1705068633480,-428.79564639,0.00022583,2]
[311363753,1705068633490,-386.38055922,0.00022583,2]
[311363755,1705068633501,-486.74627673,0.00022583,2]
[311363757,1705068633511,-452.81,0.00022583,2]
[311363759,1705068633520,-1702.94991301,0.00022583,2]
[311363761,1705068633530,-208.49553179,0.00022583,2]
[311363763,1705068633540,-237.12515196,0.00022583,2]
[311363765,1705068633550,-336.43129982,0.00022583,2]
[311363767,1705068633560,-155.0,0.00022583,2]
[311363769,1705068633569,-155.45219313,0.00022583,2]
[311363771,1705068633579,-155.0,0.00022583,2]
[311363773,1705068633589,-1720.0,0.00022583,2]
[311363775,1705068633598,-1938.03,0.00022583,2]
[311363777,1705068633608,-804.87,0.00022583,2]
[311363779,1705068633618,-1796.79,0.00022583,2]
[311363781,1705068633627,-500.0,0.00022583,2]
[311363784,1705068633636,-500.0,0.00022583,2]
[311363786,1705068633646,-1090.85,0.00022583,2]
[311363788,1705068633655,-500.0,0.00022583,2]
[311363789,1705068633664,-500.0,0.00022583,2]
[311363791,1705068633674,-744.14,0.00022583,2]
[311363793,1705068633683,-500.0,0.00022583,2]
[311363795,1705068633692,-868.96,0.00022583,2]
[311363797,1705068633701,-646.39,0.00022583,2]
[311363799,1705068633711,-2111.83,0.00022583,2]
[311363801,1705068633720,-12297.83,0.00022583,2]
[311363803,1705068633730,-958.19,0.00022583,2]
[311363806,1705068633740,-500.0,0.00022583,2]
[311363808,1705068633750,-1151.6,0.00022583,2]
[311363810,1705068633759,-756.02,0.00022583,2]
[311363812,1705068633768,-1143.99,0.00022583,2]
[311363814,1705068633778,-1587.37,0.00022583,2]
[311363816,1705068633786,-843.27,0.00022583,2]
[311363818,1705068633796,-1266.58,0.00022583,2]
[311363820,1705068633806,-500.0,0.00022583,2]
[311363822,1705068633815,-500.0,0.00022583,2]
[311363824,1705068633825,-500.0,0.00022583,2]
[311363826,1705068633834,-500.0,0.00022583,2]
[311363828,1705068633843,-1261.09,0.00022583,2]
[311363830,1705068633853,-500.0,0.00022583,2]
[311363832,1705068633861,-500.0,0.00022583,2]
[311363834,1705068633870,-534.0,0.00022583,5]
[311363836,1705068633879,-3255.81,0.00022583,2]
[311363838,1705068633890,-156.5574456,0.00022584,2]
[311363840,1705068633898,-238.63,0.00022584,2]
[311363842,1705068633913,-186.2702355,0.00022584,2]
[311363844,1705068633922,-300.64833471,0.00022584,2]
[311363846,1705068633931,-205.95951556,0.00022584,2]
[311363848,1705068633942,-155.55451817,0.00022584,2]
[311363850,1705068633951,-1558.97173258,0.00022584,2]
[311363852,1705068633960,-668.25192238,0.00022584,2]
[311363854,1705068633969,-500.0,0.00022584,2]
[311363856,1705068633978,-1386.35,0.00022584,2]
[311363858,1705068633989,-857.71,0.00022584,2]
[311363860,1705068633998,-1040.12,0.00022584,2]
[311363862,1705068634007,-1024.75,0.00022584,2]
[311363864,1705068634016,-1187.56,0.00022584,2]
[311363866,1705068634025,-538.53,0.00022584,2]
[311363868,1705068634035,-595.45,0.00022584,2]
[311363870,1705068634044,-2158.41,0.00022584,2]
[311363872,1705068634053,-17284.67,0.00022584,2]
[311363874,1705068634062,-6924.74,0.00022584,2]
[311363876,1705068634071,-1013.28,0.00022584,2]
[311363878,1705068634080,-762.42,0.00022584,2]
[311363880,1705068634089,-9784.16,0.00022584,2]
[311363882,1705068634098,-1638.91,0.00022584,2]
[311363884,1705068634107,-562.74,0.00022584,2]
[311363886,1705068634116,-500.0,0.00022584,2]
[311363888,1705068634125,-964.34,0.00022584,2]
[311363890,1705068634134,-2277.34,0.00022584,2]
[311363892,1705068634143,-2348.15,0.00022584,2]
[311363894,1705068634152,-970.02,0.00022584,2]
[311363896,1705068634161,-1067.75,0.00022584,2]
[311363898,1705068634171,-1474.9,0.00022584,2]
[311363900,1705068634181,-777.74,0.00022584,2]
[311363902,1705068634190,-603.63,0.00022584,2]
[311363904,1705068634199,-946.59,0.00022584,2]
[311363906,1705068634208,-5455.24,0.00022584,2]
[311363908,1705068634217,-1182.07,0.00022584,2]
[311363910,1705068634227,-2004.16,0.00022584,2]
[311363912,1705068634237,-1847.51,0.00022584,2]
[311363914,1705068634245,-500.0,0.00022584,2]
[311363916,1705068634254,-1133.78,0.00022584,2]
[311363918,1705068634263,-909.26,0.00022584,2]
[311363920,1705068634273,-568.23,0.00022584,2]
[311363922,1705068634282,-1481.44,0.00022584,2]
[311363924,1705068634292,-4797.62,0.00022584,2]
[311363926,1705068634301,-1916.94,0.00022584,2]
[311363928,1705068634311,-1908.08,0.00022584,2]
[311363930,1705068634320,-10117.18,0.00022584,2]
[311363932,1705068634329,-522.59,0.00022584,2]
[311363934,1705068634338,-600.68,0.00022584,2]
[311363936,1705068634347,-614.86,0.00022584,2]
[311363938,1705068634356,-500.0,0.00022584,2]
[311363940,1705068634366,-1033.45,0.00022584,2]
[311363942,1705068634375,-2614.77,0.00022584,2]
[311363944,1705068634384,-3739.6,0.00022584,2]
[311363946,1705068634394,-2605.51,0.00022584,2]
[311363948,1705068634403,-500.0,0.00022585,2]
[311363950,1705068634413,-500.0,0.00022585,2]
[311363952,1705068634423,-500.0,0.00022585,2]
[311363954,1705068634432,-500.0,0.00022585,2]
[311363956,1705068634442,-500.0,0.00022585,2]
[311363958,1705068634451,-500.0,0.00022585,2]
[311363960,1705068634460,-500.0,0.00022585,2]
[311363962,1705068634469,-500.0,0.00022585,2]
[311363964,1705068634479,-500.0,0.00022585,2]
[311363966,1705068634489,-500.0,0.00022585,2]
[311363968,1705068634498,-500.0,0.00022585,2]
[311363970,1705068634507,-500.0,0.00022585,2]
[311363972,1705068634516,-500.0,0.00022585,2]
[311363974,1705068634524,-500.0,0.00022585,2]
[311363976,1705068634533,-500.0,0.00022585,2]
[311363978,1705068634543,-500.0,0.00022585,2]
[311363980,1705068634552,-500.0,0.00022585,2]
[311363982,1705068634561,-500.0,0.00022585,2]
[311363984,1705068634571,-500.0,0.00022585,2]
[311363986,1705068634580,-500.0,0.00022585,2]
[311363988,1705068634589,-500.0,0.00022585,2]
[311363990,1705068634598,-500.0,0.00022585,2]
[311363992,1705068634608,-500.0,0.00022585,2]
[311363995,1705068634618,-500.0,0.00022585,2]
[311363996,1705068634627,-500.0,0.00022585,2]
[311363999,1705068634637,-500.0,0.00022585,2]